fUST/lending_fUST_20260623
["ID","MTS","AMOUNT","RATE_DAILY","PERIOD"]
[426112431,1782150638000,-1162.7,0.00019889,2]
[426112415,1782150638000,-500.0,0.00019724,2]
[426112418,1782150638000,-519.6429965,0.00019724,2]
[426112421,1782150638000,-500.0,0.00019724,2]
[426112427,1782150638000,-388.981698,0.00019868,2]
[426112423,1782150638000,-538.83736883,0.00019724,2]
[426112406,1782150638000,-500.0,0.00019724,2]
[426112433,1782150638000,-536.81547631,0.00019897,2]
[426112429,1782150638000,-617.963397,0.00019868,2]
[426112435,1782150638000,-462.18333333,0.00019897,2]
[426112441,1782150638000,-1000.0,0.00019998,2]
[426112439,1782150638000,-500.0,0.00019998,2]
[426112443,1782150638000,-1000.0,0.00019998,2]
[426112445,1782150638000,-1000.0,0.00019998,2]
[426112447,1782150638000,-1000.0,0.00019998,2]
[426112437,1782150638000,-500.0,0.00019989,2]
[426112454,1782150638000,-1000.0,0.00019999,2]
[426112452,1782150638000,-1000.0,0.00019999,2]
[426112448,1782150638000,-1000.0,0.00019998,2]
[426112450,1782150638000,-603.61311583,0.00019999,2]
[426112425,1782150638000,-160.0,0.00019868,2]
[426112396,1782150638000,-196.237501,0.00019688,2]
[426112404,1782150638000,-500.0,0.00019724,2]
[426112394,1782150638000,-899715.37797382,0.00019624,2]
[426112338,1782150638000,-735.15040227,0.00019622,2]
[426112340,1782150638000,-735.15040227,0.00019622,2]
[426112349,1782150638000,-735.15040227,0.00019622,2]
[426112353,1782150638000,-735.15040227,0.00019622,2]
[426112356,1782150638000,-735.15040227,0.00019622,2]
[426112351,1782150638000,-735.15040227,0.00019622,2]
[426112360,1782150638000,-735.15040227,0.00019622,2]
[426112358,1782150638000,-735.15040227,0.00019622,2]
[426112373,1782150638000,-735.15040226,0.00019622,2]
[426112388,1782150638000,-771.90792238,0.00019622,2]
[426112375,1782150638000,-735.15040226,0.00019622,2]
[426112380,1782150638000,-735.15040226,0.00019622,2]
[426112378,1782150638000,-735.15040226,0.00019622,2]
[426112362,1782150638000,-735.15040227,0.00019622,2]
[426112364,1782150638000,-735.15040227,0.00019622,2]
[426112392,1782150638000,-242035.79050072,0.00019624,2]
[426112407,1782150638000,-500.0,0.00019724,2]
[426112369,1782150638000,-735.15040226,0.00019622,2]
[426112400,1782150638000,-551.72,0.00019723,2]
[426112390,1782150638000,-771.90792238,0.00019622,2]
[426112402,1782150638000,-500.0,0.00019724,2]
[426112384,1782150638000,-735.15040226,0.00019622,2]
[426112382,1782150638000,-735.15040226,0.00019622,2]
[426112371,1782150638000,-735.15040226,0.00019622,2]
[426112366,1782150638000,-735.15040227,0.00019622,2]
[426112368,1782150638000,-735.15040227,0.00019622,2]
[426112386,1782150638000,-735.15040226,0.00019622,2]
[426112472,1782150639000,-1000.0,0.00019999,2]
[426112456,1782150639000,-1000.0,0.00019999,2]
[426112458,1782150639000,-1000.0,0.00019999,2]
[426112460,1782150639000,-1000.0,0.00019999,2]
[426112462,1782150639000,-1000.0,0.00019999,2]
[426112466,1782150639000,-1000.0,0.00019999,2]
[426112464,1782150639000,-1000.0,0.00019999,2]
[426112486,1782150639000,-21329.95244102,0.0002,2]
[426112468,1782150639000,-1000.0,0.00019999,2]
[426112484,1782150639000,-1000.0,0.00019999,2]
[426112474,1782150639000,-1000.0,0.00019999,2]
[426112476,1782150639000,-1000.0,0.00019999,2]
[426112470,1782150639000,-1000.0,0.00019999,2]
[426112482,1782150639000,-1000.0,0.00019999,2]
[426112478,1782150639000,-1000.0,0.00019999,2]
[426112480,1782150639000,-1000.0,0.00019999,2]
[426112660,1782150640000,-1389.0,0.0002,2]
[426112662,1782150640000,-1306.17199851,0.0002,2]
[426112633,1782150640000,-1009.19113651,0.0002,2]
[426113385,1782150646000,-3618.75906055,0.0002,2]
[426113383,1782150646000,-2857.0,0.0002,2]
[426124547,1782150810000,200.0,0.00022132,120]
[426124548,1782150974000,2351.38618161,0.00023014,120]
[426124549,1782150987000,5692.74949093,0.00023014,120]
[426124550,1782150990000,195.53187726,0.00023014,120]
[426124551,1782150997000,1115.10184399,0.0002054,120]
[426124553,1782151002000,934.77781576,0.00023014,30]
[426124554,1782151022000,278.16647778,0.00023014,120]
[426124555,1782151030000,188.0,0.0002,120]
[426124556,1782151034000,295.5074014,0.00023014,120]
[426124557,1782151041000,359.23091879,0.00023014,30]
[426124560,1782151043000,630.60071777,0.00023014,120]
[426124559,1782151043000,3128.96636977,0.00023014,120]
[426124558,1782151043000,376.53237495,0.00023014,30]
[426124562,1782151044000,2114.29233705,0.00023014,120]
[426124561,1782151044000,2108.72395163,0.00023014,60]
[426124564,1782151046000,151.08044372,0.00023014,120]
[426124565,1782151046000,301.37043594,0.00023014,30]
[426124563,1782151046000,3080.00738894,0.00023014,120]
[426124566,1782151048000,1703.75924163,0.00017,120]
[426124567,1782151049000,239.86651442,0.0002,120]
[426124568,1782151049000,157.30071435,0.00023014,120]
[426124569,1782151050000,200.0,0.00023014,120]
[426124570,1782151051000,385.36355433,0.00023014,120]
[426124573,1782151052000,1000.0,7.6e-05,2]
[426124572,1782151052000,1000.0,7.6e-05,2]
[426124571,1782151052000,1000.0,7.6e-05,2]
[426124576,1782151053000,1617.8871125,0.00023014,120]
[426124575,1782151053000,2454.04883575,0.00023014,30]
[426124577,1782151054000,-306.29279671,0.0001,2]
[426124580,1782151055000,2545.59296101,0.00023014,30]
[426124579,1782151055000,178.48840104,0.000178,120]
[426124578,1782151055000,-306.36,0.0001,2]
[426124581,1782151056000,284.84445677,0.00023014,120]
[426124583,1782151056000,336.09210376,0.00023014,120]
[426124582,1782151056000,1043.52968132,0.00023014,120]
[426124585,1782151057000,177.34038003,0.00023014,30]
[426124584,1782151057000,241.46942426,0.00023014,120]
[426124587,1782151060000,-87.54926,0.0001,2]
[426124586,1782151060000,-218.69074,0.0001,2]
[426124589,1782151061000,171.0,0.00012,120]
[426124588,1782151061000,441.19564509,0.00022372,120]
[426124592,1782151062000,546.28123938,0.00023014,120]
[426124591,1782151062000,-448.80298669,0.0001,2]
[426124590,1782151062000,198.5561815,0.00023014,120]
[426124596,1782151063000,654.99242627,0.0002,120]
[426124595,1782151063000,829.87566056,0.00023014,30]
[426124594,1782151063000,-306.24,0.0001,2]
[426124593,1782151063000,249.0,0.0002,120]
[426124597,1782151064000,-580.90124129,0.0001,2]
[426124599,1782151065000,-306.24,0.0001,2]
[426124598,1782151065000,459.87904467,0.00023014,45]
[426124601,1782151066000,-346.29526289,0.0001,2]
[426124600,1782151066000,269.8369686,0.00023014,120]
[426124603,1782151067000,-306.24138195,0.0001,2]
[426124602,1782151067000,353.39440909,0.00023014,30]
[426124607,1782151068000,-254.7799585,0.0001,2]
[426124605,1782151068000,568.3358306,0.00023014,120]
[426124606,1782151068000,502.827345,0.00023014,30]
[426124604,1782151068000,152.49021858,0.00023014,120]
[426124609,1782151069000,293.75025504,0.00023014,120]
[426124608,1782151069000,299.76662313,9e-05,120]
[426124610,1782151070000,275.18401362,0.00023014,30]
[426124612,1782151071000,-539.73679863,0.0001,2]
[426124613,1782151073000,-306.29,0.0001,2]
[426124618,1782151235000,-151.0,9.7e-05,2]
[426124619,1782151250000,-187.44541979,9.9e-05,2]
[426124620,1782151251000,-804.63180249,9.9e-05,2]
[426124621,1782151252000,-391.16871995,9.9e-05,2]
[426124622,1782151253000,-294.14189469,9.9e-05,2]
[426124623,1782151254000,-358.4433682,9.9e-05,2]
[426124624,1782151255000,-357.50917569,9.9e-05,2]
[426124626,1782151257000,-254.97082431,9.9e-05,2]
[426124625,1782151257000,-187.44541979,9.9e-05,2]
[426124627,1782151259000,-564.97383072,9.801e-05,2]
[426124628,1782151264000,-532.22330927,9.801e-05,2]
[426124630,1782151265000,-470.98870758,9.9e-05,2]
[426124629,1782151265000,-47.40636914,9.801e-05,2]
[426124633,1782151267000,-306.29,9.9e-05,2]
[426124631,1782151267000,-152.0,9.9e-05,2]
[426124634,1782151269000,-242.0,9.9e-05,2]
[426124640,1782151461000,-742.52461939,9.318e-05,2]
[426124695,1782151831000,-151.0,9.507e-05,2]
[426124693,1782151831000,-583.80174299,9.133e-05,2]
[426124692,1782151831000,-433.45811007,9.133e-05,2]
[426124691,1782151831000,-605.52935036,9.133e-05,2]
[426124690,1782151831000,-930.82348965,9.133e-05,2]
[426124688,1782151831000,-1871.56304102,9.042e-05,2]
[426124689,1782151831000,-1850.51834997,9.133e-05,2]
[426124687,1782151831000,-187.44541979,8.952e-05,2]
[426124694,1782151831000,-595.86895696,9.133e-05,2]
[426124699,1782151832000,-300.0,0.00013259,2]
[426124701,1782151832000,-300.0,0.00013259,2]
[426124696,1782151832000,-9.26921507,0.0001,2]
[426124697,1782151832000,-3672.4124041,0.00013,2]
[426124702,1782151832000,-96.81774004,0.00013259,2]
[426124698,1782151832000,-300.0,0.00013259,2]
[426124700,1782151832000,-300.0,0.00013259,2]
[426124704,1782151832000,-300.0,0.00013259,2]
[426124705,1782151832000,-300.0,0.00013259,2]
[426124706,1782151832000,-300.0,0.00013259,2]
[426124710,1782151832000,-263.75633832,0.00013259,2]
[426124707,1782151832000,-300.0,0.00013259,2]
[426124708,1782151832000,-300.0,0.00013259,2]
[426124709,1782151832000,-300.0,0.00013259,2]
[426124703,1782151832000,-203.18225996,0.00013259,2]
[426124716,1782151838000,-300.0,0.00013259,2]
[426124714,1782151838000,-2096.77869423,0.00013126,2]
[426124715,1782151838000,-36.24366168,0.00013259,2]
[426124717,1782151838000,-300.0,0.00013259,2]
[426124718,1782151838000,-300.0,0.00013259,2]
[426124720,1782151838000,-720.0,0.00014875,2]
[426124719,1782151838000,-600.0,0.00013523,2]
[426124721,1782151838000,-1000.0,0.00015607,2]
[426124723,1782151838000,-864.0,0.00016363,2]
[426124722,1782151838000,-433.4581101,0.00015737,2]
[426124725,1782151838000,-8.16232854,0.00017148,2]
[426124724,1782151838000,-500.0,0.00017148,2]
[426124744,1782151846000,-500.0,0.00017149,2]
[426124742,1782151846000,-500.0,0.00017149,2]
[426124741,1782151846000,-500.0,0.00017149,2]
[426124740,1782151846000,-757.64,0.00017149,2]
[426124738,1782151846000,-500.0,0.00017149,2]
[426124737,1782151846000,-500.0,0.00017149,2]
[426124736,1782151846000,-500.0,0.00017149,2]
[426124745,1782151846000,-500.0,0.00017149,2]
[426124735,1782151846000,-500.0,0.00017149,2]
[426124733,1782151846000,-491.83767146,0.00017148,2]
[426124739,1782151846000,-500.0,0.00017149,2]
[426124743,1782151846000,-500.0,0.00017149,2]
[426124734,1782151846000,-500.0,0.00017148,2]
[426124746,1782151846000,-500.0,0.00017149,2]
[426124757,1782151846000,-396.92513645,0.00017697,2]
[426124758,1782151846000,-360.71486355,0.00017697,2]
[426124747,1782151846000,-500.0,0.00017149,2]
[426124754,1782151846000,-757.64,0.00017423,2]
[426124753,1782151846000,-182.574099,0.00017353,2]
[426124756,1782151846000,-155.21875911,0.00017495,2]
[426124759,1782151846000,-217.28513645,0.00017808,2]
[426124752,1782151846000,-1668.78416901,0.0001715,2]
[426124750,1782151846000,-1209.74476207,0.0001715,2]
[426124751,1782151846000,-459.03940694,0.0001715,2]
[426124749,1782151846000,-1668.78416902,0.0001715,2]
[426124748,1782151846000,-161.76,0.0001715,2]
[426124755,1782151846000,-226.34,0.00017423,2]
[426125419,1782152044000,970.32453688,0.00022981,120]
[426125420,1782152064000,201.18776169,0.00022981,120]
[426125423,1782152065000,201.18776169,0.00022981,120]
[426125422,1782152065000,201.18776169,0.00022981,120]
[426125421,1782152065000,201.18776169,0.00022981,120]
[426125424,1782152066000,201.18776169,0.00022981,120]
[426125425,1782152067000,201.18776169,0.00022981,120]
[426125427,1782152067000,201.18776169,0.00022981,120]
[426125426,1782152067000,201.18776169,0.00022981,120]
[426125431,1782152068000,201.18776169,0.00022981,120]
[426125430,1782152068000,201.18776169,0.00022981,120]
[426125428,1782152068000,201.18776169,0.00022981,120]
[426125434,1782152069000,201.18776169,0.00022981,120]
[426125433,1782152069000,201.18776169,0.00022981,120]
[426125432,1782152069000,201.18776169,0.00022981,120]
[426125437,1782152185000,201.18776167,0.00022981,120]
[426125495,1782153035000,-3924.64350823,0.00013425,13]
[426125500,1782153035000,-300.0,0.00013831,2]
[426125497,1782153035000,-300.0,0.00013831,2]
[426125496,1782153035000,-300.0,0.00013831,2]
[426125498,1782153035000,-300.0,0.00013831,2]
[426125491,1782153035000,-893.90684644,0.0001,2]
[426125494,1782153035000,-204.227,0.00012876,2]
[426125490,1782153035000,-151.0,9.7e-05,2]
[426125493,1782153035000,-202.80474352,0.0001,2]
[426125502,1782153035000,-300.0,0.00013831,2]
[426125492,1782153035000,-1152.55877937,0.0001,2]
[426125501,1782153035000,-300.0,0.00013831,2]
[426125499,1782153035000,-300.0,0.00013831,2]
[426125510,1782153035000,-300.0,0.00013831,2]
[426125511,1782153035000,-72.63326263,0.00016356,2]
[426125509,1782153035000,-300.0,0.00013831,2]
[426125508,1782153035000,-300.0,0.00013831,2]
[426125505,1782153035000,-300.0,0.00013831,2]
[426125503,1782153035000,-300.0,0.00013831,2]
[426125506,1782153035000,-300.0,0.00013831,2]
[426125504,1782153035000,-300.0,0.00013831,2]
[426125507,1782153035000,-300.0,0.00013831,2]
[426125530,1782153038000,-1594.98,0.00017694,2]
[426125534,1782153038000,-500.0,0.00017695,2]
[426125536,1782153038000,-152.2774219,0.00017869,2]
[426125533,1782153038000,-500.0,0.00017694,2]
[426125532,1782153038000,-500.0,0.00017694,2]
[426125531,1782153038000,-500.0,0.00017694,2]
[426125526,1782153038000,-1237.00482935,0.0001715,2]
[426125529,1782153038000,-500.0,0.00017694,2]
[426125528,1782153038000,-500.0,0.00017693,2]
[426125525,1782153038000,-1237.00482935,0.0001715,2]
[426125537,1782153038000,-369.42747779,0.00017966,2]
[426125523,1782153038000,-1000.0,0.00016621,2]
[426125522,1782153038000,-111.30621137,0.00016356,2]
[426125527,1782153038000,-281.17,0.00017183,2]
[426125540,1782153038000,-500.0,0.00017967,2]
[426125524,1782153038000,-518.3281655,0.00016634,5]
[426125538,1782153038000,-500.0,0.00017967,2]
[426125553,1782153038000,-500.0,0.00018241,2]
[426125550,1782153038000,-500.0,0.00017969,2]
[426125545,1782153038000,-418.68,0.00017968,2]
[426125551,1782153038000,-500.0,0.00017969,2]
[426125541,1782153038000,-500.0,0.00017967,2]
[426125552,1782153038000,-600.0,0.00018047,2]
[426125549,1782153038000,-500.0,0.00017968,2]
[426125548,1782153038000,-500.0,0.00017968,2]
[426125546,1782153038000,-1594.98,0.00017968,2]
[426125543,1782153038000,-500.0,0.00017967,2]
[426125544,1782153038000,-500.0,0.00017967,2]
[426125542,1782153038000,-500.0,0.00017967,2]
[426125535,1782153038000,-500.0,0.00017695,2]
[426125539,1782153038000,-500.0,0.00017967,2]
[426125547,1782153038000,-500.0,0.00017968,2]
[426125566,1782153039000,-182.574099,0.00018457,2]
[426125567,1782153039000,-500.0,0.00018515,2]
[426125565,1782153039000,-500.0,0.00018243,2]
[426125564,1782153039000,-500.0,0.00018243,2]
[426125563,1782153039000,-500.0,0.00018242,2]
[426125560,1782153039000,-1594.98,0.00018242,2]
[426125554,1782153039000,-500.0,0.00018241,2]
[426125561,1782153039000,-500.0,0.00018242,2]
[426125558,1782153039000,-500.0,0.00018241,2]
[426125562,1782153039000,-500.0,0.00018242,2]
[426125557,1782153039000,-500.0,0.00018241,2]
[426125556,1782153039000,-500.0,0.00018241,2]
[426125555,1782153039000,-500.0,0.00018241,2]
[426125568,1782153039000,-500.0,0.00018515,2]
[426125559,1782153039000,-500.0,0.00018241,2]
[426125572,1782153039000,-500.0,0.00018515,2]
[426125576,1782153039000,-500.0,0.00018516,2]
[426125570,1782153039000,-500.0,0.00018515,2]
[426125585,1782153039000,-918.6,0.00018593,2]
[426125583,1782153039000,-13285.35953066,0.00018593,2]
[426125586,1782153039000,-4067.71820131,0.00018593,2]
[426125584,1782153039000,-17682.94880536,0.00018593,2]
[426125582,1782153039000,-8824.38896746,0.00018593,2]
[426125580,1782153039000,-274.46880906,0.00018592,2]
[426125569,1782153039000,-239.85157814,0.00018515,2]
[426125581,1782153039000,-37175.64749559,0.00018593,2]
[426125578,1782153039000,-500.0,0.00018517,2]
[426125577,1782153039000,-500.0,0.00018516,2]
[426125574,1782153039000,-1594.98,0.00018516,2]
[426125575,1782153039000,-500.0,0.00018516,2]
[426125573,1782153039000,-500.0,0.00018515,2]
[426125571,1782153039000,-500.0,0.00018515,2]
[426125579,1782153039000,-500.0,0.00018517,2]
[426125624,1782153040000,-2102.96,0.00018593,2]
[426125618,1782153040000,-709.06287832,0.00016197,5]
[426125622,1782153040000,-365.63604458,0.00018593,2]
[426125620,1782153040000,-1237.00482935,0.0001715,2]
[426125657,1782153041000,-1288.72719031,0.00018593,2]
[426125650,1782153041000,-2330.97593412,0.00018593,2]
[426125644,1782153041000,-328.89,0.00018593,2]
[426125741,1782153046000,-2579.0,0.00018593,2]
[426125742,1782153046000,-328.805,0.00018593,2]
[426125743,1782153109000,-500.0,0.00017694,2]
[426125744,1782153126000,-500.0,0.00017693,2]
[426125745,1782153144000,150.61767898,0.00022975,120]
[426125746,1782153145000,150.61767898,0.00022975,120]
[426126051,1782154241000,-635.10673732,0.00015372,13]
[426126050,1782154241000,-1054.61391549,0.00015218,13]
[426126505,1782154246000,-535.10673732,0.0001715,2]
[426126503,1782154246000,-4364.89326268,0.00015372,13]
[426126536,1782154246000,-280.39108117,0.0001715,2]
[426126538,1782154246000,-399.96157497,0.0001715,2]
[426126534,1782154246000,-145.24591883,0.0001715,2]
[426126540,1782154247000,-680.35265614,0.0001715,2]
[426126542,1782154247000,-81.17195781,0.00017316,2]
[426126634,1782154613000,997.27295576,0.00022972,60]
[426126637,1782154655000,1000.0,7.6e-05,2]
[426126636,1782154655000,1000.0,7.6e-05,2]
[426126701,1782155432000,-62.2374125,0.00012,2]
[426126713,1782155432000,-300.0,0.00014711,2]
[426126692,1782155432000,-302.0,0.000115,2]
[426126694,1782155432000,-994.66822468,0.00012,2]
[426126703,1782155432000,-7938.96987756,0.00013,2]
[426126705,1782155432000,-155.21875911,0.00013278,2]
[426126711,1782155432000,-1080.49733274,0.00014424,2]
[426126717,1782155432000,-300.0,0.00014711,2]
[426126707,1782155432000,-337.99340989,0.00014424,2]
[426126715,1782155432000,-300.0,0.00014711,2]
[426126720,1782155432000,-46.30080098,0.00014711,2]
[426126709,1782155432000,-608.3881378,0.00014424,2]
[426126935,1782155439000,-300.0,0.00014711,2]
[426126933,1782155439000,-253.69919902,0.00014711,2]
[426126937,1782155439000,-300.0,0.00014711,2]
[426126939,1782155439000,-300.0,0.00014711,2]
[426126942,1782155439000,-300.0,0.00014711,2]
[426126941,1782155439000,-300.0,0.00014711,2]
[426126959,1782155439000,-110.38019902,0.00014711,2]
[426126963,1782155439000,-300.0,0.00014711,2]
[426126961,1782155439000,-300.0,0.00014711,2]
[426126965,1782155439000,-300.0,0.00014711,2]
[426126967,1782155439000,-29.95173432,0.00014711,2]
[426126945,1782155439000,-189.61980098,0.00014711,2]
[426127132,1782155440000,-430.42514327,0.000166,2]
[426127128,1782155440000,-263.526,0.00016401,2]
[426127130,1782155440000,-330.651871,0.00016556,2]
[426127126,1782155440000,-600.0,0.00015883,2]
[426127122,1782155440000,-1396.7918558,0.00015573,2]
[426127124,1782155440000,-676.6173264,0.00015699,2]
[426127120,1782155440000,-1000.0,0.00015386,2]
[426127118,1782155440000,-1478.0993968,0.00015183,2]
[426127117,1782155440000,-832.26317387,0.00015183,2]
[426127115,1782155440000,-462.36842993,0.00015183,2]
[426127111,1782155440000,-300.0,0.00014711,2]
[426127109,1782155440000,-270.04826568,0.00014711,2]
[426127133,1782155440000,-774.76525789,0.000166,2]
[426127113,1782155440000,-199.1538993,0.00015158,2]
[426127136,1782155440000,-1377.36045847,0.000166,2]
[426127154,1782155440000,-2887.903226,0.00016646,2]
[426127148,1782155440000,-412.03821541,0.00016646,2]
[426127147,1782155440000,-500.0,0.00016646,2]
[426127165,1782155440000,-291.63259167,0.00016646,2]
[426127161,1782155440000,-151.0,0.00016646,2]
[426127152,1782155440000,-500.0,0.00016646,2]
[426127159,1782155440000,-2887.903226,0.00016646,2]
[426127156,1782155440000,-2887.903226,0.00016646,2]
[426127158,1782155440000,-2887.903226,0.00016646,2]
[426127163,1782155440000,-151.0,0.00016646,2]
[426127150,1782155440000,-500.0,0.00016646,2]
[426127143,1782155440000,-481.49336572,0.00016646,2]
[426127139,1782155440000,-500.0,0.00016646,2]
[426127141,1782155440000,-500.0,0.00016646,2]
[426127145,1782155440000,-500.0,0.00016646,2]
[426127137,1782155440000,-500.0,0.00016646,2]
[426127244,1782155441000,-151.0,0.00016648,2]
[426127242,1782155441000,-151.0,0.00016648,2]
[426127240,1782155441000,-151.0,0.00016648,2]
[426127238,1782155441000,-151.0,0.00016648,2]
[426127250,1782155441000,-2887.903226,0.00016648,2]
[426127234,1782155441000,-500.0,0.00016648,2]
[426127221,1782155441000,-650.77619843,0.00016647,2]
[426127232,1782155441000,-650.77619843,0.00016647,2]
[426127231,1782155441000,-650.77619843,0.00016647,2]
[426127229,1782155441000,-650.77619843,0.00016647,2]
[426127246,1782155441000,-2887.903226,0.00016648,2]
[426127248,1782155441000,-2887.903226,0.00016648,2]
[426127253,1782155441000,-2887.903226,0.00016648,2]
[426127266,1782155441000,-2887.903226,0.00016648,2]
[426127256,1782155441000,-2887.903226,0.00016648,2]
[426127252,1782155441000,-2887.903226,0.00016648,2]
[426127261,1782155441000,-2887.903226,0.00016648,2]
[426127259,1782155441000,-2887.903226,0.00016648,2]
[426127270,1782155441000,-2887.903226,0.00016648,2]
[426127268,1782155441000,-2887.903226,0.00016648,2]
[426127272,1782155441000,-11714.4495384,0.00016648,2]
[426127274,1782155441000,-229.99,0.00016767,2]
[426127276,1782155441000,-1919.30944051,0.000169,2]
[426127278,1782155441000,-500.0,0.0001692,2]
[426127293,1782155441000,-2469.99,0.00016921,2]
[426127292,1782155441000,-500.0,0.00016921,2]
[426127223,1782155441000,-650.77619843,0.00016647,2]
[426127257,1782155441000,-2887.903226,0.00016648,2]
[426127227,1782155441000,-650.77619843,0.00016647,2]
[426127280,1782155441000,-500.0,0.0001692,2]
[426127217,1782155441000,-650.77619843,0.00016647,2]
[426127172,1782155441000,-500.0,0.00016647,2]
[426127167,1782155441000,-500.0,0.00016647,2]
[426127174,1782155441000,-500.0,0.00016647,2]
[426127169,1782155441000,-589.16,0.00016647,2]
[426127170,1782155441000,-500.0,0.00016647,2]
[426127176,1782155441000,-500.0,0.00016647,2]
[426127178,1782155441000,-500.0,0.00016647,2]
[426127180,1782155441000,-500.0,0.00016647,2]
[426127183,1782155441000,-151.0,0.00016647,2]
[426127182,1782155441000,-2469.99,0.00016647,2]
[426127185,1782155441000,-233.29536,0.00016647,2]
[426127189,1782155441000,-500.0,0.00016647,2]
[426127193,1782155441000,-500.0,0.00016647,2]
[426127219,1782155441000,-650.77619843,0.00016647,2]
[426127195,1782155441000,-500.0,0.00016647,2]
[426127191,1782155441000,-500.0,0.00016647,2]
[426127197,1782155441000,-500.0,0.00016647,2]
[426127187,1782155441000,-154.273662,0.00016647,2]
[426127198,1782155441000,-222.682715,0.00016647,2]
[426127202,1782155441000,-317.8936437,0.00016647,2]
[426127206,1782155441000,-650.77619843,0.00016647,2]
[426127204,1782155441000,-650.77619843,0.00016647,2]
[426127208,1782155441000,-650.77619843,0.00016647,2]
[426127210,1782155441000,-650.77619843,0.00016647,2]
[426127214,1782155441000,-650.77619843,0.00016647,2]
[426127215,1782155441000,-650.77619843,0.00016647,2]
[426127212,1782155441000,-650.77619843,0.00016647,2]
[426127225,1782155441000,-650.77619843,0.00016647,2]
[426127200,1782155441000,-650.77619843,0.00016647,2]
[426127282,1782155441000,-500.0,0.0001692,2]
[426127311,1782155441000,-2887.903226,0.00016999,2]
[426127288,1782155441000,-500.0,0.0001692,2]
[426127356,1782155441000,-500.0,0.00017223,2]
[426127360,1782155441000,-330.651871,0.00017253,2]
[426127358,1782155441000,-555.934,0.00017223,2]
[426127354,1782155441000,-192.2736187,0.000172,2]
[426127362,1782155441000,-500.0,0.00017273,2]
[426127364,1782155441000,-500.0,0.00017273,2]
[426127368,1782155441000,-357.50673559,0.00017366,2]
[426127365,1782155441000,-1005.0,0.00017316,2]
[426127370,1782155441000,-500.0,0.00017468,2]
[426127372,1782155441000,-500.0,0.00017468,2]
[426127374,1782155441000,-500.0,0.00017468,2]
[426127376,1782155441000,-500.0,0.00017468,2]
[426127378,1782155441000,-500.0,0.00017469,2]
[426127391,1782155441000,-444.16868956,0.00017473,2]
[426127393,1782155441000,-500.0,0.00017547,2]
[426127380,1782155441000,-500.0,0.00017469,2]
[426127395,1782155441000,-200.11,0.00017547,2]
[426127384,1782155441000,-500.0,0.00017469,2]
[426127382,1782155441000,-2469.99,0.00017469,2]
[426127389,1782155441000,-720.0,0.00017472,2]
[426127386,1782155441000,-500.0,0.00017469,2]
[426127387,1782155441000,-588.55069243,0.00017469,2]
[426127397,1782155441000,-159.078157,0.0001761,2]
[426127399,1782155441000,-160.460192,0.0001761,2]
[426127403,1782155441000,-162.380719,0.00017659,2]
[426127401,1782155441000,-1919.30944048,0.0001765,2]
[426127408,1782155441000,-589.16,0.00017692,2]
[426127348,1782155441000,-500.0,0.00017195,2]
[426127350,1782155441000,-500.0,0.00017195,2]
[426127284,1782155441000,-500.0,0.0001692,2]
[426127346,1782155441000,-500.0,0.00017195,2]
[426127352,1782155441000,-500.0,0.00017196,2]
[426127290,1782155441000,-500.0,0.00016921,2]
[426127286,1782155441000,-500.0,0.0001692,2]
[426127301,1782155441000,-500.0,0.00016922,2]
[426127297,1782155441000,-500.0,0.00016921,2]
[426127295,1782155441000,-500.0,0.00016921,2]
[426127299,1782155441000,-500.0,0.00016921,2]